[Event "V Open LLucmajor"]
[Site "LLucmajor"]
[Date "2016.05.11"]
[Round "4"]
[White "Rakhmanov, Aleksandr"]
[Black "Movsziszian, Karen"]
[Result "1/2-1/2"]
[ECO "B06"]
[WhiteElo "2654"]
[BlackElo "2468"]
[PlyCount "55"]
[EventDate "2016.??.??"]
[EventCountry "ESP"]
[TimeControl "5400+30"]
[WhiteClock "0:22:16"]
[BlackClock "0:55:20"]

1. Nf3 {[%emt 0:00:00]} g6 {[%emt 0:01:44]} 2. d4 {[%emt 0:00:00]} Bg7 {
[%emt 0:00:09]} 3. e4 {[%emt 0:02:06]} d6 {[%emt 0:00:01]} 4. c3 {[%emt 0:00:
54]} Nf6 {[%emt 0:00:18]} 5. Bd3 {[%emt 0:00:25]} O-O {[%emt 0:00:03]} 6. O-O {
[%emt 0:00:39]} Nc6 {[%emt 0:01:10]} 7. d5 {[%emt 0:01:31]} Nb8 {[%emt 0:00:15]
} 8. h3 {[%emt 0:01:13]} e6 {[%emt 0:06:48]} 9. dxe6 {[%emt 0:10:53]} Bxe6 {
[%emt 0:00:13]} 10. Nd4 {[%emt 0:03:22]} Bd7 {[%emt 0:00:07]} 11. c4 {[%emt 0:
02:44]} Nc6 {[%emt 0:03:21]} 12. Nxc6 {[%emt 0:01:59]} bxc6 {[%emt 0:02:12]}
13. Nc3 {[%emt 0:01:08]} Re8 {[%emt 0:00:35]} 14. Qc2 {[%emt 0:13:08]} Nh5 {
[%emt 0:04:25]} 15. Be3 {[%emt 0:01:17]} Qh4 {[%emt 0:00:54]} 16. Qd2 {[%emt 0:
09:29]} Bxh3 {[%emt 0:17:38]} 17. gxh3 {[%emt 0:02:30]} Qxh3 {[%emt 0:00:13]}
18. f3 {[%emt 0:06:10]} Ng3 {[%emt 0:01:09]} 19. Qg2 {[%emt 0:01:36]} Qxg2+ {
[%emt 0:00:09]} 20. Kxg2 {[%emt 0:00:06]} Nxf1 {[%emt 0:00:06]} 21. Rxf1 {
[%emt 0:00:51]} Rab8 {[%emt 0:02:04]} 22. Rf2 {[%emt 0:03:46]} Bxc3 {[%emt 0:
00:07]} 23. bxc3 {[%emt 0:00:10]} c5 {[%emt 0:00:01]} 24. Bc1 {[%emt 0:04:00]}
f6 {[%emt 0:01:05]} 25. Kg3 {[%emt 0:01:31]} Kg7 {[%emt 0:00:11]} 26. Bc2 {
[%emt 0:01:46]} Re7 {[%emt 0:02:45]} 27. Rh2 {[%emt 0:03:29]} Rb6 {[%emt 0:00:
27]} 28. Bh6+ {[%emt 0:05:01]} 1/2-1/2

[Event "V Open LLucmajor"]
[Site "LLucmajor"]
[Date "2016.05.11"]
[Round "4"]
[White "Rijnaarts, Sjef"]
[Black "Kolotilina, Liudmila"]
[Result "1-0"]
[ECO "C03"]
[WhiteElo "2373"]
[BlackElo "2136"]
[PlyCount "91"]
[EventDate "2016.??.??"]
[EventCountry "ESP"]
[TimeControl "5400+30"]
[WhiteClock "0:15:39"]
[BlackClock "0:05:01"]

1. e4 {[%emt 0:00:00]} e6 {[%emt 0:01:04]} 2. d4 {[%emt 0:00:00]} d5 {[%emt 0:
00:04]} 3. Nd2 {[%emt 0:00:00]} Be7 {[%emt 0:00:06]} 4. Ngf3 {[%emt 0:00:12]}
Nf6 {[%emt 0:00:06]} 5. e5 {[%emt 0:00:07]} Nfd7 {[%emt 0:00:07]} 6. Bd3 {
[%emt 0:00:22]} c5 {[%emt 0:00:09]} 7. c3 {[%emt 0:00:08]} Nc6 {[%emt 0:00:06]}
8. O-O {[%emt 0:00:18]} h5 {[%emt 0:02:25]} 9. Re1 {[%emt 0:02:56]} cxd4 {
[%emt 0:00:54]} 10. cxd4 {[%emt 0:00:57]} g5 {[%emt 0:01:53]} 11. Nb3 {[%emt 0:
01:36]} g4 {[%emt 0:01:22]} 12. Nfd2 {[%emt 0:03:41]} Nb4 {[%emt 0:02:22]} 13.
Bf1 {[%emt 0:06:21]} Qc7 {[%emt 0:00:37]} 14. Re3 {[%emt 0:01:17]} Qc2 {
[%emt 0:00:35]} 15. Qe2 {[%emt 0:03:58]} Qg6 {[%emt 0:07:43]} 16. Rc3 {[%emt 0:
05:22]} Nc2 {[%emt 0:02:31]} 17. Rb1 {[%emt 0:00:47]} Nb4 {[%emt 0:00:39]} 18.
a3 {[%emt 0:07:06]} Na2 {[%emt 0:00:19]} 19. Rd3 {[%emt 0:01:10]} b6 {[%emt 0:
04:26]} 20. Qd1 {[%emt 0:00:56]} Ba6 {[%emt 0:02:47]} 21. Re3 {[%emt 0:01:10]}
Bxf1 {[%emt 0:01:19]} 22. Qxf1 {[%emt 0:02:29]} O-O {[%emt 0:13:20]} 23. Ra1 {
[%emt 0:02:03]} Nxc1 {[%emt 0:00:04]} 24. Rxc1 {[%emt 0:00:11]} a6 {[%emt 0:13:
26]} 25. Rc7 {[%emt 0:03:53]} Rfd8 {[%emt 0:00:06]} 26. h3 {[%emt 0:09:57]} Bg5
{[%emt 0:11:04]} 27. f4 {[%emt 0:05:39]} Bh6 {[%emt 0:00:26]} 28. h4 {[%emt 0:
17:19]} Rac8 {[%emt 0:12:20]} 29. Rcc3 {[%emt 0:00:18]} Rxc3 {[%emt 0:02:21]}
30. Rxc3 {[%emt 0:00:05]} g3 {[%emt 0:00:42]} 31. Nc1 {[%emt 0:01:00]} Qg4 {
[%emt 0:01:55]} 32. Ne2 {[%emt 0:00:09]} Qxh4 {[%emt 0:00:50]} 33. Rxg3+ {
[%emt 0:00:08]} Kf8 {[%emt 0:06:02]} 34. Nf3 {[%emt 0:01:01]} Qe7 {[%emt 0:00:
01]} 35. Qb1 {[%emt 0:00:15]} Ke8 {[%emt 0:01:46]} 36. Rg8+ {[%emt 0:03:13]}
Bf8 {[%emt 0:00:45]} 37. Qc2 {[%emt 0:02:19]} Nb8 {[%emt 0:01:29]} 38. Ng3 {
[%emt 0:00:39]} Kd7 {[%emt 0:02:32]} 39. Nxh5 {[%emt 0:00:53]} Rc8 {[%emt 0:00:
03]} 40. Nf6+ {[%emt 0:00:26]} Kd8 {[%emt 0:00:02]} 41. Qh7 {[%emt 0:02:00]}
Nc6 {[%emt 0:02:07]} 42. Ng5 {[%emt 0:01:08]} Kc7 {[%emt 0:01:01]} 43. f5 {
[%emt 0:02:58]} Nxd4 {[%emt 0:01:43]} 44. fxe6 {[%emt 0:00:16]} Qc5 {[%emt 0:
00:38]} 45. Qxf7+ {[%emt 0:00:08]} Be7 {[%emt 0:01:12]} 46. Qxe7+ 1-0

[Event "V Open LLucmajor"]
[Site "LLucmajor"]
[Date "2016.05.11"]
[Round "4"]
[White "Stremavicius, Titas"]
[Black "Kobo, Ori"]
[Result "1/2-1/2"]
[ECO "A34"]
[WhiteElo "2443"]
[BlackElo "2491"]
[PlyCount "88"]
[EventDate "2016.??.??"]
[EventCountry "ESP"]
[TimeControl "5400+30"]
[WhiteClock "0:18:10"]
[BlackClock "0:03:53"]

1. Nf3 {[%emt 0:03:27]} Nf6 2. c4 c5 {[%emt 0:00:00]} 3. Nc3 {[%emt 0:00:54]}
d5 {[%emt 0:00:00]} 4. cxd5 {[%emt 0:00:10]} Nxd5 {[%emt 0:00:05]} 5. d4 {
[%emt 0:00:10]} Nxc3 {[%emt 0:00:18]} 6. bxc3 {[%emt 0:00:09]} g6 {[%emt 0:00:
08]} 7. Bf4 {[%emt 0:00:09]} Bg7 {[%emt 0:00:24]} 8. e3 {[%emt 0:00:26]} Qa5 {
[%emt 0:04:44]} 9. Qd2 {[%emt 0:04:46]} Bf5 {[%emt 0:03:07]} 10. Be2 {[%emt 0:
09:39]} Nd7 {[%emt 0:06:32]} 11. O-O {[%emt 0:16:18]} O-O {[%emt 0:04:54]} 12.
Qb2 {[%emt 0:03:55]} Nb6 {[%emt 0:09:18]} 13. Be5 {[%emt 0:01:56]} Rac8 {
[%emt 0:00:07]} 14. Bxg7 {[%emt 0:01:05]} Kxg7 {[%emt 0:07:31]} 15. c4 {
[%emt 0:00:28]} cxd4 {[%emt 0:02:34]} 16. Nxd4 {[%emt 0:04:22]} Kg8 17. Rac1 {
[%emt 0:04:02]} Be4 {[%emt 0:06:04]} 18. c5 {[%emt 0:07:57]} Nd7 {[%emt 0:14:
51]} 19. Nb3 Qc7 {[%emt 0:01:19]} 20. Rfd1 {[%emt 0:06:26]} Rcd8 {[%emt 0:01:
51]} 21. Rd4 Nf6 {[%emt 0:00:34]} 22. Rcd1 {[%emt 0:02:47]} Rxd4 {[%emt 0:01:
09]} 23. Qxd4 {[%emt 0:01:04]} Bd5 {[%emt 0:01:48]} 24. Bf3 {[%emt 0:04:56]}
Bxf3 {[%emt 0:00:49]} 25. gxf3 {[%emt 0:00:05]} Qc6 {[%emt 0:02:26]} 26. Kg2 {
[%emt 0:00:14]} Rc8 {[%emt 0:02:26]} 27. Qe5 Kf8 {[%emt 0:06:23]} 28. Rd4 {
[%emt 0:02:28]} h5 29. Rb4 {[%emt 0:02:57]} Qc7 {[%emt 0:02:18]} 30. Qxc7 {
[%emt 0:03:56]} Rxc7 {[%emt 0:00:02]} 31. Na5 {[%emt 0:00:33]} Rxc5 {[%emt 0:
00:11]} 32. Nxb7 {[%emt 0:00:02]} Rc2 {[%emt 0:03:05]} 33. Ra4 {[%emt 0:00:03]}
Nd5 {[%emt 0:00:36]} 34. Kg3 h4+ 35. Rxh4 {[%emt 0:03:02]} Rxa2 {[%emt 0:08:38]
} 36. Rh8+ {[%emt 0:00:05]} Kg7 {[%emt 0:00:03]} 37. Rd8 {[%emt 0:00:13]} Nf6 {
[%emt 0:05:47]} 38. Nc5 {[%emt 0:00:44]} Rc2 {[%emt 0:00:52]} 39. Na6 {[%emt 0:
02:07]} Rc6 {[%emt 0:00:28]} 40. Nb4 {[%emt 0:00:02]} Rb6 {[%emt 0:01:13]} 41.
Na2 {[%emt 0:01:21]} e5 {[%emt 0:01:01]} 42. Ra8 {[%emt 0:00:36]} a6 {[%emt 0:
01:32]} 43. Nc3 {[%emt 0:00:03]} Rc6 {[%emt 0:00:16]} 44. Ne4 {[%emt 0:00:13]}
Nxe4+ {[%emt 0:02:43]} 1/2-1/2

[Event "V Open LLucmajor"]
[Site "LLucmajor"]
[Date "2016.05.11"]
[Round "4"]
[White "Winants, Luc"]
[Black "Trent, Lawrence"]
[Result "1/2-1/2"]
[ECO "A49"]
[WhiteElo "2562"]
[BlackElo "2450"]
[PlyCount "111"]
[EventDate "2016.??.??"]
[EventCountry "ESP"]
[TimeControl "5400+30"]
[WhiteClock "0:01:57"]
[BlackClock "0:01:02"]

1. d4 {[%emt 0:00:00]} Nf6 {[%emt 0:00:00]} 2. Nf3 {[%emt 0:00:04]} g6 {
[%emt 0:00:00]} 3. g3 {[%emt 0:01:21]} Bg7 {[%emt 0:02:15]} 4. Bg2 {[%emt 0:00:
11]} c6 {[%emt 0:03:39]} 5. O-O {[%emt 0:01:47]} d5 {[%emt 0:00:20]} 6. Bf4 {
[%emt 0:09:12]} O-O {[%emt 0:02:58]} 7. Nbd2 {[%emt 0:01:25]} Bf5 {[%emt 0:02:
16]} 8. c3 {[%emt 0:01:24]} Qb6 {[%emt 0:06:40]} 9. Qb3 {[%emt 0:05:51]} Nbd7 {
[%emt 0:05:37]} 10. Ne5 {[%emt 0:02:54]} Nxe5 {[%emt 0:01:42]} 11. Bxe5 {
[%emt 0:00:08]} Bh6 {[%emt 0:00:06]} 12. Bxf6 {[%emt 0:01:37]} Bxd2 {[%emt 0:
06:53]} 13. Bxe7 {[%emt 0:33:05]} Qxb3 {[%emt 0:00:19]} 14. axb3 {[%emt 0:00:
05]} Rfe8 {[%emt 0:00:03]} 15. Bc5 {[%emt 0:00:39]} b6 {[%emt 0:01:34]} 16. Bd6
{[%emt 0:06:30]} Rxe2 {[%emt 0:00:13]} 17. Bf3 {[%emt 0:01:59]} Re6 {[%emt 0:
09:31]} 18. Bc7 {[%emt 0:02:38]} Re7 {[%emt 0:00:05]} 19. Be5 {[%emt 0:00:45]}
Bc2 {[%emt 0:01:39]} 20. b4 {[%emt 0:00:52]} f6 {[%emt 0:04:28]} 21. Bxf6 {
[%emt 0:04:22]} Rf7 {[%emt 0:00:05]} 22. Bd1 {[%emt 0:00:08]} Bxd1 {[%emt 0:13:
19]} 23. Rfxd1 {[%emt 0:00:46]} Bxc3 {[%emt 0:00:04]} 24. bxc3 {[%emt 0:04:33]}
Rxf6 {[%emt 0:00:03]} 25. Ra3 {[%emt 0:04:00]} g5 {[%emt 0:00:39]} 26. Rda1 {
[%emt 0:01:47]} Rf3 {[%emt 0:01:14]} 27. Kg2 {[%emt 0:01:15]} g4 {[%emt 0:16:
03]} 28. Rxa7 {[%emt 0:00:46]} Rxa7 {[%emt 0:00:50]} 29. Rxa7 {[%emt 0:00:05]}
Rxc3 {[%emt 0:00:03]} 30. b5 {[%emt 0:00:33]} cxb5 {[%emt 0:07:14]} 31. Rd7 {
[%emt 0:00:10]} b4 {[%emt 0:02:38]} 32. Rxd5 {[%emt 0:00:12]} Rc4 {[%emt 0:05:
11]} 33. h3 {[%emt 0:07:17]} gxh3+ {[%emt 0:02:11]} 34. Kxh3 {[%emt 0:00:06]}
Kf7 {[%emt 0:00:51]} 35. Rb5 {[%emt 0:00:15]} Rxd4 {[%emt 0:00:42]} 36. Rxb6 {
[%emt 0:00:08]} Kg7 {[%emt 0:02:54]} 37. f4 {[%emt 0:00:14]} Re4 {[%emt 0:00:
12]} 38. Kg4 {[%emt 0:00:42]} Rc4 {[%emt 0:00:08]} 39. Kf5 {[%emt 0:00:51]} Rc3
{[%emt 0:03:16]} 40. g4 {[%emt 0:01:59]} b3 {[%emt 0:00:02]} 41. Rb7+ {[%emt 0:
00:27]} Kg8 {[%emt 0:00:02]} 42. Kf6 {[%emt 0:00:56]} Rc6+ {[%emt 0:00:16]} 43.
Kg5 {[%emt 0:00:20]} Rc5+ {[%emt 0:01:48]} 44. f5 {[%emt 0:00:18]} Rc3 {
[%emt 0:00:03]} 45. Kf6 {[%emt 0:02:37]} Rc6+ {[%emt 0:00:48]} 46. Ke5 {
[%emt 0:01:05]} Rc5+ {[%emt 0:00:28]} 47. Kd6 {[%emt 0:00:40]} Ra5 {[%emt 0:01:
17]} 48. Ke7 {[%emt 0:01:17]} h5 {[%emt 0:00:46]} 49. Kf6 {[%emt 0:02:34]} Ra6+
{[%emt 0:00:22]} 50. Kg5 {[%emt 0:00:06]} hxg4 {[%emt 0:00:04]} 51. f6 {
[%emt 0:00:40]} g3 {[%emt 0:01:05]} 52. Kg6 {[%emt 0:00:15]} Ra8 {[%emt 0:00:
01]} 53. Rg7+ {[%emt 0:00:32]} Kf8 {[%emt 0:00:36]} 54. Rh7 {[%emt 0:00:07]}
Ke8 {[%emt 0:00:08]} 55. Re7+ {[%emt 0:01:22]} Kf8 {[%emt 0:00:47]} 56. Rh7 {
[%emt 0:00:11]} 1/2-1/2

[Event "V Open LLucmajor"]
[Site "LLucmajor"]
[Date "2016.05.09"]
[Round "1"]
[White "Calzetta Ruiz, Monica"]
[Black "Kobo, Ori"]
[Result "0-1"]
[ECO "C00"]
[WhiteElo "2253"]
[BlackElo "2477"]
[PlyCount "66"]
[EventDate "2016.??.??"]
[EventCountry "ESP"]
[TimeControl "5400+30"]
[WhiteClock "0:02:13"]
[BlackClock "0:11:22"]

1. e4 {[%emt 0:00:44]} e6 {[%emt 0:00:00]} 2. d4 {[%emt 0:00:06]} d5 {[%emt 0:
00:00]} 3. Bd3 {[%emt 0:00:05]} dxe4 {[%emt 0:00:07]} 4. Bxe4 {[%emt 0:00:06]}
Nf6 {[%emt 0:00:08]} 5. Bf3 {[%emt 0:00:05]} c5 {[%emt 0:00:23]} 6. Ne2 {
[%emt 0:00:55]} Nc6 {[%emt 0:00:23]} 7. Be3 {[%emt 0:00:09]} cxd4 {[%emt 0:00:
12]} 8. Nxd4 {[%emt 0:00:08]} Ne5 {[%emt 0:00:10]} 9. Nc3 {[%emt 0:00:16]} Be7
{[%emt 0:01:15]} 10. Qe2 {[%emt 0:00:30]} Nxf3+ {[%emt 0:05:22]} 11. Qxf3 {
[%emt 0:00:14]} Qc7 {[%emt 0:06:28]} 12. O-O-O {[%emt 0:05:35]} a6 {[%emt 0:10:
09]} 13. Rhe1 {[%emt 0:14:57]} Bd7 {[%emt 0:15:13]} 14. Bf4 {[%emt 0:05:53]}
Qc8 {[%emt 0:02:17]} 15. Be5 {[%emt 0:17:39]} O-O {[%emt 0:01:10]} 16. Rd3 {
[%emt 0:06:03]} Ne8 {[%emt 0:07:46]} 17. Qh5 {[%emt 0:06:24]} f6 {[%emt 0:06:
47]} 18. Bg3 {[%emt 0:26:56]} Rf7 {[%emt 0:06:49]} 19. Qd1 {[%emt 0:06:01]} Bf8
{[%emt 0:05:22]} 20. f4 {[%emt 0:02:03]} Nd6 {[%emt 0:04:06]} 21. Nb3 {[%emt 0:
03:05]} Nc4 {[%emt 0:01:35]} 22. Re4 {[%emt 0:00:19]} b5 {[%emt 0:02:41]} 23.
Red4 {[%emt 0:00:04]} Ra7 {[%emt 0:01:15]} 24. Kb1 {[%emt 0:03:08]} Rc7 {
[%emt 0:01:51]} 25. Ne4 {[%emt 0:00:05]} e5 {[%emt 0:03:19]} 26. fxe5 {[%emt 0:
00:03]} fxe5 {[%emt 0:00:02]} 27. Rd5 {[%emt 0:00:31]} Bg4 {[%emt 0:05:09]} 28.
Qe1 {[%emt 0:00:02]} Nxb2 {[%emt 0:02:23]} 29. Kxb2 {[%emt 0:01:52]} Rxc2+ {
[%emt 0:00:14]} 30. Kb1 {[%emt 0:00:02]} Re2 {[%emt 0:00:25]} 31. Qc3 {[%emt 0:
00:01]} Rxe4 {[%emt 0:01:40]} 32. Qxc8 {[%emt 0:00:06]} Bxc8 {[%emt 0:00:08]}
33. Rxe5 {[%emt 0:00:10]} Rxe5 {[%emt 0:00:19]} 0-1

[Event "V Open LLucmajor"]
[Site "LLucmajor"]
[Date "2016.05.09"]
[Round "1"]
[White "Fedorchuk, Sergey A"]
[Black "Pogorelov, Ruslan"]
[Result "1-0"]
[ECO "B18"]
[WhiteElo "2623"]
[BlackElo "2347"]
[PlyCount "53"]
[EventDate "2016.??.??"]
[EventCountry "ESP"]
[TimeControl "5400+30"]
[WhiteClock "0:34:33"]
[BlackClock "0:40:37"]

1. e4 {[%emt 0:08:21]} c6 {[%emt 0:00:00]} 2. d4 {[%emt 0:00:09]} d5 3. Nd2 {
[%emt 0:00:11]} dxe4 {[%emt 0:00:12]} 4. Nxe4 {[%emt 0:00:09]} Bf5 5. Ng3 {
[%emt 0:00:08]} Bg6 {[%emt 0:00:19]} 6. Nh3 {[%emt 0:00:56]} e6 {[%emt 0:01:23]
} 7. Nf4 {[%emt 0:01:25]} Bd6 {[%emt 0:02:31]} 8. c3 Nf6 {[%emt 0:00:10]} 9. h4
{[%emt 0:01:05]} Bxf4 {[%emt 0:00:04]} 10. Bxf4 h6 11. h5 {[%emt 0:00:19]} Bh7
{[%emt 0:00:38]} 12. Qb3 {[%emt 0:00:56]} Nd5 13. Bd2 Qc7 {[%emt 0:01:48]} 14.
c4 {[%emt 0:01:26]} Nf6 {[%emt 0:00:59]} 15. Qa3 {[%emt 0:05:54]} Nbd7 {
[%emt 0:01:03]} 16. Be2 {[%emt 0:09:38]} b6 {[%emt 0:17:36]} 17. Rh4 {[%emt 0:
05:28]} O-O-O {[%emt 0:13:15]} 18. Rc1 c5 19. b4 {[%emt 0:07:18]} cxd4 {
[%emt 0:00:47]} 20. c5 {[%emt 0:00:20]} Kb8 21. Rxd4 Ne5 {[%emt 0:10:39]} 22.
cxb6 {[%emt 0:13:40]} Qxb6 {[%emt 0:00:09]} 23. Rxd8+ {[%emt 0:00:00]} Rxd8 {
[%emt 0:01:22]} 24. Be3 {[%emt 0:00:12]} Qb7 25. Bf4 {[%emt 0:07:26]} Rd5 {
[%emt 0:06:11]} 26. Ba6 {[%emt 0:03:26]} Qd7 {[%emt 0:03:17]} 27. Qc3 {[%emt 0:
00:30]} 1-0

[Event "V Open LLucmajor"]
[Site "LLucmajor"]
[Date "2016.05.09"]
[Round "1"]
[White "Hoffmann, Michael"]
[Black "Galiana Salom, Juan Ramon"]
[Result "1/2-1/2"]
[ECO "C06"]
[WhiteElo "2477"]
[BlackElo "2246"]
[PlyCount "58"]
[EventDate "2016.??.??"]
[EventCountry "ESP"]
[TimeControl "5400+30"]

1. e4 e6 2. d4 d5 3. Nd2 Nf6 4. e5 Nfd7 5. Bd3 c5 6. c3 Nc6 7. Ne2 cxd4 8. cxd4
f6 9. exf6 Nxf6 10. Nf3 Bd6 11. O-O Qc7 12. Bg5 O-O 13. Rc1 Ng4 14. Ng3 Bf4 15.
Bxf4 Qxf4 16. Bb5 Bd7 17. Re1 Rae8 18. Bxc6 Bxc6 19. h3 Nf6 20. Ne5 Nd7 21. Rc2
Nxe5 22. Rxe5 g6 23. Qd3 Rf6 24. Nf1 Rf5 25. Rce2 a6 26. Qe3 Qxe3 27. R5xe3 Bb5
28. Rxe6 Rxe6 29. Rxe6 Rf4 1/2-1/2

[Event "V Open LLucmajor"]
[Site "LLucmajor"]
[Date "2016.05.09"]
[Round "1"]
[White "Ladron De Guevara Pinto, Paolo"]
[Black "Granda Zuniga, Julio E"]
[Result "1/2-1/2"]
[ECO "B48"]
[WhiteElo "2353"]
[BlackElo "2685"]
[PlyCount "160"]
[EventDate "2016.??.??"]
[EventCountry "ESP"]
[TimeControl "5400+30"]
[WhiteClock "0:04:11"]
[BlackClock "0:03:40"]

1. e4 {[%emt 0:00:00]} c5 {[%emt 0:04:14]} 2. Nf3 {[%emt 0:00:00]} Nc6 {
[%emt 0:00:07]} 3. d4 {[%emt 0:00:00]} cxd4 {[%emt 0:00:02]} 4. Nxd4 {[%emt 0:
00:00]} e6 {[%emt 0:00:04]} 5. Nc3 {[%emt 0:00:02]} Qc7 {[%emt 0:00:04]} 6. Be3
{[%emt 0:00:04]} a6 {[%emt 0:00:13]} 7. Qd2 {[%emt 0:00:11]} Nf6 {[%emt 0:02:
17]} 8. f4 {[%emt 0:00:17]} d6 {[%emt 0:04:21]} 9. O-O-O {[%emt 0:06:43]} Be7 {
[%emt 0:00:15]} 10. Kb1 {[%emt 0:08:01]} O-O {[%emt 0:00:21]} 11. Bd3 {[%emt 0:
09:13]} Na5 {[%emt 0:03:10]} 12. e5 {[%emt 0:33:32]} dxe5 {[%emt 0:00:44]} 13.
fxe5 {[%emt 0:00:05]} Nd7 {[%emt 0:06:39]} 14. Qe2 {[%emt 0:05:36]} Nc5 {
[%emt 0:04:03]} 15. Nf3 {[%emt 0:10:49]} Nxd3 {[%emt 0:01:07]} 16. cxd3 {
[%emt 0:00:04]} b5 {[%emt 0:03:55]} 17. Rc1 {[%emt 0:00:03]} Qb8 {[%emt 0:00:
29]} 18. Ne4 {[%emt 0:00:14]} Bb7 {[%emt 0:00:22]} 19. Bc5 {[%emt 0:04:13]}
Bxc5 {[%emt 0:00:47]} 20. Rxc5 {[%emt 0:00:18]} Qa7 {[%emt 0:33:46]} 21. Rhc1 {
[%emt 0:00:12]} Qb6 {[%emt 0:04:47]} 22. Qe3 {[%emt 0:07:34]} Bxe4 {[%emt 0:25:
28]} 23. Qxe4 {[%emt 0:00:05]} Qb7 {[%emt 0:00:05]} 24. Qb4 {[%emt 0:00:22]}
Qb6 {[%emt 0:00:01]} 25. Qe4 {[%emt 0:00:05]} Qb7 {[%emt 0:00:07]} 26. Qxb7 {
[%emt 0:04:24]} Nxb7 {[%emt 0:00:01]} 27. Rc7 {[%emt 0:00:07]} Rfb8 {[%emt 0:
02:12]} 28. Rd7 {[%emt 0:00:26]} Nd8 {[%emt 0:01:06]} 29. Rcc7 {[%emt 0:03:46]}
b4 {[%emt 0:01:45]} 30. Kc2 {[%emt 0:00:15]} a5 {[%emt 0:00:47]} 31. Kb3 {
[%emt 0:01:18]} a4+ {[%emt 0:00:32]} 32. Kc4 {[%emt 0:00:08]} h6 {[%emt 0:00:
12]} 33. Nd4 {[%emt 0:00:30]} b3 {[%emt 0:01:02]} 34. a3 {[%emt 0:00:59]} Ra5 {
[%emt 0:00:01]} 35. Rxd8+ {[%emt 0:02:02]} Rxd8 {[%emt 0:00:01]} 36. Nc6 {
[%emt 0:00:06]} Raa8 {[%emt 0:00:52]} 37. Nxd8 {[%emt 0:00:05]} Rxd8 {[%emt 0:
00:03]} 38. Kc3 {[%emt 0:02:07]} f6 {[%emt 0:00:16]} 39. Rc4 {[%emt 0:00:25]}
Ra8 {[%emt 0:00:11]} 40. exf6 {[%emt 0:01:28]} gxf6 {[%emt 0:00:02]} 41. Rc7 {
[%emt 0:00:23]} e5 {[%emt 0:00:13]} 42. d4 {[%emt 0:02:03]} exd4+ {[%emt 0:00:
13]} 43. Kxd4 {[%emt 0:00:30]} Rd8+ {[%emt 0:00:24]} 44. Ke3 {[%emt 0:01:36]}
Rd1 {[%emt 0:00:13]} 45. Rc4 {[%emt 0:00:34]} Rb1 {[%emt 0:00:02]} 46. Rxa4 {
[%emt 0:00:05]} Rxb2 {[%emt 0:00:03]} 47. Kf3 {[%emt 0:01:15]} Ra2 {[%emt 0:00:
28]} 48. Rb4 {[%emt 0:00:51]} Rxa3 {[%emt 0:00:07]} 49. Rb7 {[%emt 0:00:28]}
Kf8 {[%emt 0:00:27]} 50. g4 {[%emt 0:00:30]} Ke8 {[%emt 0:00:23]} 51. Kf4 {
[%emt 0:00:18]} Kd8 {[%emt 0:00:05]} 52. Kf5 {[%emt 0:00:10]} Kc8 {[%emt 0:00:
02]} 53. Rb4 {[%emt 0:00:17]} Kc7 {[%emt 0:00:02]} 54. h4 {[%emt 0:00:12]} Kc6
{[%emt 0:00:13]} 55. Kg6 {[%emt 0:00:26]} Kc5 {[%emt 0:00:52]} 56. Rb8 {
[%emt 0:00:07]} Kc4 {[%emt 0:00:22]} 57. Rc8+ {[%emt 0:00:18]} Kd3 {[%emt 0:00:
07]} 58. Rb8 {[%emt 0:00:10]} Kc2 {[%emt 0:00:21]} 59. Kxh6 {[%emt 0:02:29]}
Ra4 {[%emt 0:00:21]} 60. Kh5 {[%emt 0:00:51]} b2 {[%emt 0:00:07]} 61. g5 {
[%emt 0:00:23]} f5 {[%emt 0:00:02]} 62. g6 {[%emt 0:00:21]} Rg4 {[%emt 0:01:24]
} 63. Rc8+ {[%emt 0:00:12]} Kd3 {[%emt 0:03:58]} 64. Rb8 {[%emt 0:00:05]} Kc2 {
[%emt 0:02:51]} 65. Rc8+ {[%emt 0:00:04]} Kb3 {[%emt 0:00:14]} 66. Rb8+ {
[%emt 0:00:04]} Rb4 {[%emt 0:00:19]} 67. Rxb4+ {[%emt 0:00:15]} Kxb4 {[%emt 0:
00:04]} 68. g7 {[%emt 0:00:02]} b1=Q {[%emt 0:00:08]} 69. g8=Q {[%emt 0:00:06]}
Qe4 {[%emt 0:01:56]} 70. Qb8+ {[%emt 0:02:32]} Kc4 {[%emt 0:00:28]} 71. Qc7+ {
[%emt 0:00:02]} Kd4 {[%emt 0:00:41]} 72. Qd6+ {[%emt 0:00:12]} Kc4 {[%emt 0:00:
33]} 73. Qc7+ {[%emt 0:00:06]} Kb5 {[%emt 0:00:41]} 74. Qb8+ {[%emt 0:00:19]}
Ka4 {[%emt 0:00:08]} 75. Qa7+ {[%emt 0:00:22]} Kb3 {[%emt 0:00:11]} 76. Qb8+ {
[%emt 0:00:09]} Ka2 {[%emt 0:00:36]} 77. Qh2+ {[%emt 0:00:14]} Kb1 {[%emt 0:00:
10]} 78. Qg1+ {[%emt 0:00:21]} Kc2 {[%emt 0:00:08]} 79. Kg5 {[%emt 0:00:31]}
Qe7+ {[%emt 0:00:09]} 80. Kxf5 {[%emt 0:00:07]} Qxh4 {[%emt 0:00:03]} 1/2-1/2

[Event "V Open LLucmajor"]
[Site "LLucmajor"]
[Date "2016.05.09"]
[Round "1"]
[White "Lintchevski, Daniil"]
[Black "Zaksaite, Salomeja"]
[Result "1-0"]
[ECO "B33"]
[WhiteElo "2566"]
[BlackElo "2311"]
[PlyCount "103"]
[EventDate "2016.??.??"]
[EventCountry "ESP"]
[TimeControl "5400+30"]
[WhiteClock "0:06:53"]
[BlackClock "0:00:36"]

1. e4 {[%emt 0:59:02]} c5 {[%emt 1:21:05]} 2. Nf3 {[%emt 0:00:30]} Nc6 {
[%emt 0:00:30]} 3. d4 {[%emt 0:00:30]} cxd4 {[%emt 0:00:30]} 4. Nxd4 {[%emt 0:
00:30]} Nf6 {[%emt 0:00:30]} 5. Nc3 {[%emt 0:00:30]} e5 {[%emt 0:00:30]} 6.
Ndb5 {[%emt 0:00:30]} d6 {[%emt 0:00:30]} 7. Bg5 {[%emt 0:00:30]} a6 {[%emt 0:
00:30]} 8. Na3 {[%emt 0:00:30]} b5 {[%emt 0:00:30]} 9. Nd5 {[%emt 0:00:30]} Be7
{[%emt 0:00:30]} 10. Bxf6 {[%emt 0:00:30]} Bxf6 {[%emt 0:00:30]} 11. c4 {
[%emt 0:00:30]} Nd4 {[%emt 0:00:30]} 12. cxb5 {[%emt 0:00:30]} Bb7 {[%emt 0:00:
30]} 13. Bc4 {[%emt 0:00:30]} axb5 {[%emt 0:00:30]} 14. Bxb5+ {[%emt 0:00:30]}
Kf8 {[%emt 0:00:30]} 15. Bc4 {[%emt 0:00:30]} Qa5+ {[%emt 0:00:30]} 16. Qd2 {
[%emt 0:00:30]} Bd8 {[%emt 0:00:30]} 17. Qxa5 {[%emt 0:00:30]} Bxa5+ {[%emt 0:
00:30]} 18. Kd1 {[%emt 0:00:30]} f5 {[%emt 0:00:30]} 19. f3 {[%emt 0:00:30]}
Rb8 {[%emt 0:00:30]} 20. Rb1 {[%emt 0:00:30]} g6 {[%emt 0:00:30]} 21. Bd3 {
[%emt 0:00:30]} Bxd5 {[%emt 0:00:30]} 22. exd5 {[%emt 0:00:30]} Ke7 {[%emt 0:
00:30]} 23. Nc4 {[%emt 0:00:30]} Bc7 {[%emt 0:00:30]} 24. Kd2 {[%emt 0:00:30]}
Rb5 {[%emt 0:00:30]} 25. b4 {[%emt 0:00:30]} Ra8 {[%emt 0:00:30]} 26. a3 {
[%emt 0:00:30]} Rb7 {[%emt 0:00:30]} 27. Rb2 {[%emt 0:00:30]} Kd7 {[%emt 0:00:
30]} 28. Ra1 {[%emt 0:00:30]} Bd8 {[%emt 0:00:30]} 29. a4 {[%emt 0:00:30]} Bg5+
{[%emt 0:00:30]} 30. Kd1 {[%emt 0:00:30]} Nb5 {[%emt 0:00:30]} 31. Rb3 {
[%emt 0:00:30]} e4 {[%emt 0:00:30]} 32. Na5 {[%emt 0:11:51]} Nd4 {[%emt 0:06:
36]} 33. Rbb1 {[%emt 0:01:58]} exd3 {[%emt 0:02:35]} 34. Nxb7 {[%emt 0:00:04]}
d2 {[%emt 0:00:42]} 35. Ra2 {[%emt 0:01:37]} Re8 {[%emt 0:00:57]} 36. Rxd2 {
[%emt 0:00:06]} Bxd2 {[%emt 0:00:07]} 37. Kxd2 {[%emt 0:00:02]} Re5 {[%emt 0:
00:47]} 38. Na5 {[%emt 0:08:50]} Rxd5 {[%emt 0:00:11]} 39. Kc3 {[%emt 0:00:03]}
Ne2+ {[%emt 0:00:22]} 40. Kc2 {[%emt 0:00:04]} Nf4 {[%emt 0:00:57]} 41. g3 {
[%emt 0:01:43]} Ne6 {[%emt 0:00:04]} 42. f4 {[%emt 0:03:57]} Rd4 {[%emt 0:00:
11]} 43. Kc3 {[%emt 0:00:39]} Re4 {[%emt 0:01:05]} 44. Rd1 {[%emt 0:00:08]} Nc7
{[%emt 0:00:45]} 45. Nb3 {[%emt 0:00:19]} Re3+ {[%emt 0:00:26]} 46. Kb2 {
[%emt 0:00:43]} d5 {[%emt 0:00:34]} 47. b5 {[%emt 0:00:13]} Kd6 {[%emt 0:00:15]
} 48. Rc1 {[%emt 0:00:07]} Ne6 {[%emt 0:00:48]} 49. b6 {[%emt 0:00:50]} Nd8 {
[%emt 0:00:24]} 50. a5 {[%emt 0:00:28]} Nc6 {[%emt 0:00:33]} 51. a6 {[%emt 0:
00:33]} Re4 {[%emt 0:00:30]} 52. a7 {[%emt 0:00:50]} 1-0